bitfinex/quotes_ETHUSD_20250424
["timestamp","ask_amount","ask_price","bid_price","bid_amount"]
[1745525384475,6.06853089,1768.7,1768.4,0.10918921]
[1745525387363,3.41450916,1768.7,1768.4,0.10918921]
[1745525390568,0.7698,1769.0,1768.6,5.65418975]
[1745525390759,8.65300052,1769.0,1768.7,4.832]
[1745525391065,3.0,1769.0,1768.7,4.94301159]
[1745525391467,8.652963,1769.0,1768.7,4.94301159]
[1745525394391,10.08353352,1769.0,1768.7,4.94301159]
[1745525394746,5.65324397,1768.9,1768.7,4.94301159]
[1745525394967,14.30616094,1769.0,1768.7,4.94301159]
[1745525395176,8.652963,1769.0,1768.7,4.94301159]
[1745525400400,8.65355042,1768.8,1768.7,4.94301159]
[1745525400896,3.0,1768.8,1768.7,4.94301159]
[1745525401300,3.0,1769.1,1768.8,0.8268]
[1745525401476,9.56089005,1769.1,1768.8,0.8268]
[1745525401816,15.21373555,1769.1,1768.9,0.11007933]
[1745525402824,5.65291124,1769.0,1768.9,0.11007933]
[1745525403492,3.0,1768.9,1768.7,4.832]
[1745525408799,3.0,1768.9,1768.8,4.831]
[1745525412053,3.0,1768.9,1768.8,4.94086559]
[1745525414815,0.90815499,1769.1,1768.8,4.94086559]
[1745525415160,5.65213078,1769.3,1768.9,0.7761]
[1745525415333,11.3044028,1769.3,1769.0,0.10978946]
[1745525415535,5.65228683,1769.2,1769.0,0.10978946]
[1745525416153,3.0,1769.1,1769.0,0.10978946]
[1745525417764,11.88518758,1769.1,1769.0,4.93978946]
[1745525417966,13.63893502,1769.1,1769.0,4.93978946]
[1745525418453,13.63893502,1769.1,1769.0,4.83]
[1745525418836,5.65323082,1768.9,1768.8,4.83]
[1745525419166,8.65323082,1768.9,1768.8,4.83]
[1745525419328,12.89782681,1768.9,1768.8,4.83]
[1745525419540,5.65387007,1768.7,1768.6,4.83]
[1745525419765,8.51493744,1768.7,1768.6,4.83]
[1745525419921,6.47787007,1768.7,1768.6,4.83]
[1745525420121,8.65437001,1768.6,1768.2,0.7507]
[1745525420322,5.65514901,1768.3,1768.1,4.83]
[1745525421029,6.08433561,1768.3,1768.1,4.83]
[1745525422456,3.0,1768.4,1768.1,4.83]
[1745525422669,8.65495633,1768.4,1768.1,4.83]
[1745525422828,14.31007132,1768.4,1768.1,4.83]
[1745525423029,8.65495633,1768.4,1768.1,4.83]
[1745525423663,5.65529579,1768.3,1768.1,4.83]
[1745525424158,14.31121158,1768.2,1767.8,0.764]
[1745525424345,8.65546883,1768.2,1767.4,22.61996386]
[1745525424544,0.8056,1768.1,1767.6,0.764]
[1745525424751,3.0,1768.0,1767.6,6.42126648]
[1745525425559,11.31203955,1768.1,1767.6,6.42126648]
[1745525425797,5.65612537,1768.0,1767.6,2.56202366]
[1745525425968,5.65596385,1768.1,1767.6,2.56202366]
[1745525426958,5.65621342,1768.0,1767.6,2.56202366]
[1745525427165,5.65596385,1768.1,1767.6,2.56202366]
[1745525427666,11.31204573,1768.1,1767.6,8.21930077]
[1745525427963,5.65596385,1768.1,1767.6,8.21930077]
[1745525428464,11.3120037,1768.1,1767.6,8.21930077]
[1745525428760,5.65614908,1768.0,1767.6,8.21930077]
[1745525428971,5.65596385,1768.1,1767.6,8.21930077]
[1745525429458,11.31204226,1768.1,1767.6,8.21930077]
[1745525429679,5.65615853,1768.0,1767.6,8.21930077]
[1745525429973,5.65649469,1767.9,1767.6,2.56202366]
[1745525430183,5.65649469,1767.9,1767.6,0.764]
[1745525430388,5.65649469,1767.9,1767.7,4.832]
[1745525430389,6.44569469,1767.9,1767.7,4.832]
[1745525430552,5.65680904,1767.8,1767.7,4.832]
[1745525430754,5.65962986,1766.9,1766.8,0.5]
[1745525430937,8.07778469,1766.9,1766.8,0.5]
[1745525431284,5.65962986,1766.9,1766.8,0.5]
[1745525431785,3.7817,1767.1,1766.8,0.73196337]
[1745525431950,8.65910727,1767.1,1766.8,0.73196337]
[1745525432151,5.65932715,1767.0,1766.8,0.73196337]
[1745525432561,8.65912185,1767.1,1766.8,0.73196337]
[1745525432873,3.0,1767.1,1766.8,0.73196337]
[1745525433175,5.6584901,1767.3,1766.9,0.7995]
[1745525433360,5.65867396,1767.2,1766.9,0.7995]
[1745525433680,5.65867396,1767.2,1767.0,0.2319696]
[1745525434175,5.6589893,1767.1,1767.0,0.2319696]
[1745525434378,6.07903748,1767.1,1767.0,0.2319696]
[1745525434761,9.07903748,1767.1,1767.0,0.2319696]
[1745525435076,5.65962986,1766.9,1766.8,0.5]
[1745525435440,5.65962986,1766.9,1766.8,0.72111358]
[1745525436481,6.89858642,1766.9,1766.8,0.72111358]
[1745525436781,7.71278642,1766.9,1766.8,0.5]
[1745525437654,7.71278642,1766.9,1766.8,0.72235731]
[1745525437853,7.71278642,1766.9,1766.8,0.5]
[1745525438691,9.89858642,1766.9,1766.8,0.5]
[1745525438898,6.7299357,1767.0,1766.8,0.5]
[1745525439106,6.7299357,1767.0,1766.8,0.72285839]
[1745525439400,5.65962986,1766.9,1766.8,0.72285839]
[1745525441201,6.44722986,1766.9,1766.8,0.72285839]
[1745525441384,6.44722986,1766.9,1766.8,0.5]
[1745525441583,7.76494642,1766.9,1766.8,0.5]
[1745525441895,10.76494642,1766.9,1766.8,0.5]
[1745525444667,11.0594764,1766.9,1766.8,0.5]
[1745525451204,11.6094764,1766.9,1766.8,0.5]
[1745525451411,16.4464764,1766.9,1766.8,0.5]
[1745525453066,11.6094764,1766.9,1766.8,0.5]
[1745525453270,16.4464764,1766.9,1766.8,0.5]
[1745525457106,16.4464764,1766.9,1766.8,0.4935766]
[1745525457409,11.6094764,1766.9,1766.8,0.4935766]
[1745525457804,11.0594764,1766.9,1766.8,0.4935766]
[1745525458304,10.2718764,1766.9,1766.8,0.4935766]
[1745525458908,10.2718764,1766.9,1766.8,0.72173078]
[1745525460215,8.95415984,1766.9,1766.8,0.4935766]
[1745525460577,8.95415984,1766.9,1766.8,0.72173078]
[1745525460823,8.95415984,1766.9,1766.8,0.4935766]
[1745525461014,8.95415984,1766.9,1766.8,0.72173078]
[1745525463224,8.95415984,1766.9,1766.8,0.4935766]
[1745525463391,10.52256939,1766.9,1766.8,0.4935766]
[1745525469717,11.85816939,1766.9,1766.8,0.4935766]
[1745525473607,10.52256939,1766.9,1766.8,0.4935766]
[1745525473809,8.95415984,1766.9,1766.8,0.4935766]
[1745525474294,8.95415984,1766.9,1766.8,0.71988031]
[1745525477253,0.29452998,1766.9,1766.8,0.71988031]
[1745525477436,0.42004818,1767.1,1766.9,0.77]
[1745525477634,6.7293337,1767.2,1767.0,0.22641516]
[1745525478221,5.65884186,1767.2,1767.0,0.22641516]
[1745525478427,10.24377264,1767.5,1767.1,0.7528]
[1745525478428,3.78352231,1767.5,1767.1,0.7528]
[1745525478736,9.15784261,1767.5,1767.3,0.7528]
[1745525478935,3.5,1767.5,1767.3,0.7528]
[1745525479253,1.3653037,1767.6,1767.5,0.7568]
[1745525479424,1.07049184,1767.8,1767.5,0.98021876]
[1745525479754,6.72725642,1767.8,1767.5,0.98021876]
[1745525480413,1.07049184,1767.8,1767.5,0.98021876]
[1745525480610,1.07049184,1767.8,1767.5,2.12752415]
[1745525481313,1.07049184,1768.0,1767.6,0.7966]
[1745525481514,7.15027489,1768.0,1767.6,0.7966]
[1745525481822,7.15027489,1768.0,1767.7,0.21531274]
[1745525482147,11.31313051,1767.9,1767.7,0.21531274]
[1745525482352,5.6567485,1767.8,1767.7,0.21531274]
[1745525482533,5.65663574,1767.9,1767.7,0.21531274]
[1745525482738,6.72724034,1767.8,1767.7,0.21531274]
[1745525484565,9.72724034,1767.8,1767.7,0.21531274]
[1745525485335,5.65770862,1767.5,1767.4,0.7966]
[1745525485679,5.65770862,1767.5,1767.4,5.84527736]
[1745525485943,5.65770862,1767.5,1767.4,1.01227736]
[1745525486093,9.89626752,1767.5,1767.4,0.21567736]
[1745525486589,9.89626752,1767.5,1767.1,0.7966]
[1745525486590,5.65866908,1767.2,1767.1,5.6296]
[1745525486888,5.65941167,1767.0,1766.9,5.6296]
[1745525487095,5.65962986,1766.9,1766.8,0.4935766]
[1745525487303,5.65962986,1766.9,1766.8,5.3265766]
[1745525487663,6.73001158,1767.0,1766.8,5.3265766]
[1745525487894,5.65951974,1767.0,1766.8,5.3265766]
[1745525488563,5.65962986,1766.9,1766.8,5.3265766]
[1745525489098,6.08619829,1766.9,1766.8,5.3265766]
[1745525489886,7.36781928,1766.9,1766.8,5.3265766]
[1745525490474,10.36781928,1766.9,1766.8,5.3265766]
[1745525491280,10.36781928,1766.9,1766.8,0.4935766]
[1745525492213,10.36781928,1766.9,1766.3,4.834]
[1745525492214,5.66123188,1766.4,1766.3,4.834]
[1745525493980,6.08007692,1766.4,1766.3,4.834]
[1745525495941,5.66104919,1766.5,1766.3,4.834]
[1745525496081,5.66104919,1766.5,1766.4,0.8009]
[1745525496883,5.66123188,1766.4,1766.3,4.834]
[1745525497280,6.73154103,1766.5,1766.3,4.834]
[1745525497616,5.66123188,1766.4,1766.3,4.834]
[1745525497820,5.66198187,1766.2,1766.0,5.6359]
[1745525498193,5.66198187,1766.2,1766.1,0.17250184]
[1745525498505,6.73190565,1766.4,1766.2,0.8227]
[1745525498883,9.73190565,1766.4,1766.3,0.17234108]
[1745525499078,9.73190565,1766.4,1766.2,0.8227]
[1745525499277,9.73190565,1766.4,1766.3,0.17234108]
[1745525499498,9.73190565,1766.4,1766.2,0.8227]
[1745525499815,5.66155239,1766.3,1766.2,0.8227]
[1745525501638,5.66210552,1766.2,1766.1,0.8064]
[1745525502148,5.66210552,1766.2,1766.1,0.98292101]
[1745525503357,5.66169685,1766.3,1766.1,0.98292101]
[1745525503713,9.07725861,1766.4,1766.1,0.98292101]
[1745525504426,3.41580821,1766.4,1766.1,6.64510083]
[1745525504765,3.41580821,1766.4,1766.1,0.98292101]
[1745525505063,5.66104596,1766.5,1766.2,0.8195]
[1745525505250,5.66040796,1766.7,1766.3,0.9956477]
[1745525505413,11.32162391,1766.6,1766.4,4.835]
[1745525505734,5.66075594,1766.6,1766.5,0.175987]
[1745525506156,5.66042583,1766.7,1766.5,0.175987]
[1745525506157,5.66049715,1766.7,1766.5,0.175987]
[1745525506361,5.66059096,1766.6,1766.5,0.175987]
[1745525506651,5.66049715,1766.7,1766.6,0.7614]
[1745525506868,5.66049715,1766.7,1766.6,0.93672543]
[1745525508170,1.49706027,1766.9,1766.6,0.93672543]
[1745525508373,7.15692209,1766.9,1766.6,0.93672543]
[1745525508765,1.49706027,1766.9,1766.6,0.93672543]
[1745525508945,7.15670564,1766.9,1766.6,1.59647623]
[1745525509473,5.66007634,1766.8,1766.6,0.93672543]
[1745525510676,6.0862138,1766.9,1766.6,0.93672543]
[1745525510977,5.66013064,1766.8,1766.6,0.93672543]
[1745525511783,6.73062248,1766.8,1766.6,0.93672543]
[1745525511942,5.66027056,1766.7,1766.6,0.93672543]
[1745525512677,6.44727056,1766.7,1766.6,0.17532543]
[1745525512977,5.66059096,1766.6,1766.5,4.835]
[1745525513188,5.66122626,1766.5,1766.3,4.835]
[1745525514179,11.32245252,1766.5,1766.3,4.835]
[1745525514481,5.66119985,1766.5,1766.3,4.835]
[1745525514857,11.32238708,1766.5,1766.3,4.835]
[1745525515182,5.66118723,1766.5,1766.3,4.835]
[1745525516185,6.73126378,1766.6,1766.3,4.835]
[1745525516882,1.07049184,1766.6,1766.3,4.835]
[1745525517084,8.66046492,1766.7,1766.3,4.835]
[1745525517085,8.66046492,1766.7,1766.4,0.95056029]
[1745525517384,8.66037989,1766.7,1766.4,0.95056029]
[1745525518963,14.3209211,1766.7,1766.4,0.95056029]
[1745525520157,5.66080244,1766.6,1766.4,0.95056029]
[1745525523487,11.32163913,1766.6,1766.4,0.95056029]
[1745525523717,5.66080244,1766.6,1766.4,0.95056029]
[1745525523912,6.73129428,1766.6,1766.4,0.17506029]
[1745525524117,5.6609114,1766.5,1766.4,0.17506029]
[1745525525112,6.73129428,1766.6,1766.4,0.17506029]
[1745525526483,5.6609114,1766.5,1766.4,0.17506029]
[1745525528306,6.73129428,1766.6,1766.4,0.17506029]
[1745525528704,5.6609114,1766.5,1766.4,0.17506029]
[1745525529123,6.73129428,1766.6,1766.4,0.17506029]
[1745525529827,12.39211765,1766.6,1766.4,0.17506029]
[1745525530502,5.66080244,1766.6,1766.4,0.17506029]
[1745525531271,11.32162292,1766.6,1766.4,0.17506029]
[1745525531864,8.66051541,1766.7,1766.4,0.17506029]
[1745525532063,8.66042502,1766.7,1766.4,0.17506029]
[1745525532265,5.66071955,1766.6,1766.4,0.17506029]
[1745525533467,9.63351671,1766.7,1766.4,0.17506029]
[1745525533966,15.29409488,1766.7,1766.4,0.17506029]
[1745525534179,9.63351671,1766.7,1766.4,0.17506029]
[1745525534465,15.29409989,1766.7,1766.4,0.17506029]
[1745525535264,9.63351671,1766.7,1766.4,0.17506029]
[1745525536386,9.63351671,1766.7,1766.4,5.00906029]
[1745525536691,5.6606276,1766.6,1766.4,5.00906029]
[1745525537697,9.63351671,1766.7,1766.4,5.00906029]
[1745525537854,5.66072203,1766.6,1766.4,5.00906029]
[1745525538181,9.63351671,1766.7,1766.4,5.00906029]
[1745525538387,15.29402239,1766.7,1766.4,5.00906029]
[1745525539098,3.97309169,1766.7,1766.4,5.00906029]
[1745525539408,6.73062615,1766.8,1766.4,5.00906029]
[1745525539752,12.39081113,1766.8,1766.4,5.00906029]
[1745525540093,6.73062615,1766.8,1766.5,0.7886]
[1745525540391,12.39083871,1766.8,1766.6,0.17413407]
[1745525540591,6.73062615,1766.8,1766.6,0.17413407]
[1745525544497,0.42656843,1766.9,1766.6,0.17413407]
[1745525544660,15.38951965,1767.0,1766.6,0.17413407]
[1745525544856,17.00381162,1767.0,1766.6,0.17413407]
[1745525545057,17.00386794,1767.0,1766.6,0.17413407]
[1745525545498,5.6596586,1766.9,1766.6,0.17413407]
[1745525546116,11.31956938,1766.9,1766.6,0.17413407]
[1745525546389,5.6596586,1766.9,1766.6,0.17413407]
[1745525547357,11.73632526,1766.9,1766.6,0.17413407]
[1745525547559,6.07641488,1766.9,1766.6,0.17413407]
[1745525551173,1.07049184,1766.8,1766.6,0.17413407]
[1745525551703,0.41675628,1766.9,1766.6,0.17413407]
[1745525551872,15.38953829,1767.0,1766.6,0.17413407]
[1745525552200,5.65969716,1766.9,1766.6,0.17413407]
[1745525552594,3.0,1767.0,1766.7,0.7702]
[1745525552796,6.72938457,1767.2,1766.7,0.7702]
[1745525552989,7.71241083,1767.2,1766.8,0.17315866]
[1745525553388,7.14656532,1767.2,1766.9,0.7702]
[1745525553628,7.14656532,1767.2,1766.9,5.6042]
[1745525553765,7.14656532,1767.2,1767.0,0.17218325]
[1745525553964,5.6589893,1767.1,1767.0,0.17218325]
[1745525555368,9.4298893,1767.1,1767.0,0.17218325]
[1745525555568,11.65343312,1767.1,1767.0,0.17218325]
[1745525555971,5.65930956,1767.0,1766.9,4.834]
[1745525556192,6.7298014,1767.0,1766.9,4.834]
[1745525557105,5.65991812,1766.9,1766.7,5.6374]
[1745525557315,1.07049184,1766.8,1766.7,5.6374]
[1745525557680,6.73044203,1766.8,1766.7,5.6374]
[1745525560399,6.73044203,1766.8,1766.7,0.8034]
[1745525560710,6.73044203,1766.8,1766.7,5.6374]
[1745525561210,6.73044203,1766.8,1766.7,5.80955264]
[1745525563709,7.96947804,1766.8,1766.7,5.00615264]
[1745525569218,7.96947804,1766.8,1766.7,0.17215264]
[1745525569415,8.76427804,1766.8,1766.7,0.17215264]
[1745525569619,5.66108071,1766.5,1766.4,4.833]
[1745525569815,6.73157255,1766.5,1766.4,4.833]
[1745525570121,6.73157255,1766.5,1766.4,4.99190885]
[1745525572324,6.73157255,1766.5,1766.4,0.15890885]
[1745525572534,6.73157255,1766.5,1766.3,4.833]
[1745525572827,5.66108071,1766.5,1766.4,0.15890961]
[1745525573440,6.0764196,1766.5,1766.4,0.15890961]
[1745525574329,6.0764196,1766.5,1766.4,0.15892478]
[1745525575896,12.14602725,1766.5,1766.4,0.15892478]
[1745525576099,5.66155239,1766.3,1766.2,4.833]
[1745525576427,5.66155239,1766.3,1766.2,4.99258879]
[1745525577722,6.73204423,1766.3,1766.2,4.99258879]
[1745525580449,9.73204423,1766.3,1766.2,0.15958879]
[1745525580650,11.2713865,1766.3,1766.2,0.15958879]
[1745525580854,5.66191067,1766.2,1766.0,4.834]
[1745525581164,5.66219353,1766.1,1766.0,4.834]
[1745525581549,11.32405017,1766.2,1766.0,4.834]
[1745525582049,5.66191067,1766.2,1766.0,4.834]
[1745525582665,11.3240282,1766.2,1766.0,4.834]
[1745525582863,5.66219353,1766.1,1766.0,4.834]
[1745525584215,7.70608211,1766.2,1765.9,22.5875]
[1745525585833,5.66220709,1766.1,1765.9,22.5875]
[1745525586858,7.70668559,1766.0,1765.9,21.819]
[1745525587054,5.6629343,1765.9,1765.8,4.834]
[1745525588967,5.66320963,1765.8,1765.6,4.834]
[1745525590469,5.46222304,1765.8,1765.6,4.834]
[1745525591867,5.66318743,1765.8,1765.6,4.834]
[1745525592167,5.66318743,1765.8,1765.7,0.15042332]
[1745525593079,8.66318743,1765.8,1765.7,0.15042332]
[1745525593448,8.66318743,1765.8,1765.6,4.835]
[1745525593788,3.0,1765.8,1765.7,0.90662332]
[1745525601281,8.66315551,1765.8,1765.7,0.90662332]
[1745525602688,8.66315551,1765.8,1765.7,0.15042332]
[1745525603143,9.47585551,1765.8,1765.7,0.15042332]
[1745525603577,5.66443865,1765.4,1765.2,21.822]
[1745525603780,5.66443865,1765.4,1765.3,0.15486931]
[1745525604548,6.73806858,1765.4,1765.3,0.15486931]
[1745525606747,7.16976511,1765.4,1765.3,0.15486931]
[1745525607192,1.50532646,1765.4,1765.3,0.15486931]
[1745525608280,0.43169653,1765.4,1765.3,0.15486931]
[1745525608490,3.0,1765.5,1765.3,2.05334057]
[1745525612499,8.66416022,1765.5,1765.3,2.05334057]
[1745525612666,3.0,1765.5,1765.3,2.05334057]
[1745525614203,2.04563976,1765.8,1765.4,5.66443865]
[1745525614501,2.04563976,1765.8,1765.5,0.90773427]
[1745525614677,5.04563976,1765.8,1765.5,7.22905631]
[1745525614875,5.04563976,1765.8,1765.6,5.66376424]
[1745525615084,8.13155214,1765.9,1765.5,7.22884946]
[1745525615273,2.04563976,1765.9,1765.7,0.15813074]
[1745525615468,2.04563976,1765.9,1765.5,7.07191519]
[1745525615469,7.70847842,1765.9,1765.6,4.99321116]
[1745525615812,3.0,1765.8,1765.6,5.63333401]
[1745525616973,2.04563976,1765.9,1765.6,5.63333401]
[1745525617173,3.0,1765.8,1765.6,5.63333401]
[1745525618415,3.43182152,1765.8,1765.6,5.63333401]
[1745525621011,4.50542576,1765.8,1765.6,4.99321116]
[1745525621173,10.16866029,1765.8,1765.6,4.99321116]
[1745525622276,15.8321256,1765.8,1765.6,4.99321116]
[1745525622482,3.0,1765.7,1765.6,4.99321116]
[1745525622715,8.66347624,1765.7,1765.6,4.99321116]
[1745525623007,11.00518989,1765.7,1765.6,4.99321116]
[1745525623305,3.0,1765.7,1765.6,4.99321116]
[1745525632423,8.66347624,1765.7,1765.6,4.99321116]
[1745525633128,3.0,1765.7,1765.6,4.99321116]
[1745525635991,3.0,1765.7,1765.6,5.5221433]
[1745525636932,3.0,1765.7,1765.6,4.99321116]
[1745525638089,8.66347624,1765.7,1765.6,4.99321116]
[1745525638932,10.3438469,1765.7,1765.6,4.99321116]
[1745525639087,11.1385469,1765.7,1765.6,0.15821116]
[1745525639588,8.66407955,1765.6,1765.3,4.833]
[1745525639788,2.04523115,1765.5,1765.3,4.833]
[1745525640732,2.04523115,1765.5,1765.4,0.5294489]
[1745525644033,10.70903062,1765.6,1765.4,0.5294489]
[1745525644631,10.70903062,1765.6,1765.3,5.603]
[1745525645627,10.70903062,1765.6,1765.4,0.52945977]
[1745525646337,10.70903062,1765.6,1765.3,5.603]
[1745525647040,10.70903062,1765.6,1765.4,0.52922089]
[1745525647646,10.70903062,1765.6,1765.3,5.603]
[1745525648347,10.70903062,1765.6,1765.4,0.52924895]
[1745525648847,10.70903062,1765.6,1765.3,5.603]
[1745525649452,3.0,1765.6,1765.4,0.5293177]
[1745525649814,3.0,1765.6,1765.3,12.0004614]
[1745525651050,3.0,1765.6,1765.4,0.52930747]
[1745525651662,3.0,1765.6,1765.3,6.33586739]
[1745525652015,3.0,1765.6,1765.4,0.15913686]
[1745525652544,3.0,1765.6,1765.5,0.52934881]
[1745525652913,0.43182152,1765.8,1765.5,6.35250937]
[1745525653110,17.1860103,1765.9,1765.6,1.92349975]
[1745525653322,17.1860103,1765.9,1765.6,1.28824881]
[1745525653522,11.52286695,1765.9,1765.7,0.1588956]
[1745525653761,6.43095584,1766.1,1765.7,4.9918956]
[1745525653916,5.66234411,1766.1,1765.8,0.804]
[1745525654257,2.04523115,1766.1,1765.9,0.15759454]
[1745525654438,5.04523115,1766.1,1765.9,0.15759454]
[1745525654644,5.04523115,1766.1,1765.8,0.804]
[1745525654825,10.70746485,1766.1,1765.9,0.15759454]
[1745525655038,11.13384931,1766.1,1765.9,0.52867523]
[1745525655310,11.13384931,1766.1,1766.0,0.1576356]
[1745525655510,5.47161561,1766.1,1766.0,0.1576356]
[1745525656110,5.47161561,1766.1,1765.8,0.804]
[1745525656306,5.47161561,1766.1,1766.0,0.15793924]
[1745525656556,5.47161561,1766.1,1765.9,0.15801965]
[1745525656715,5.47161561,1766.1,1766.0,0.15792406]
[1745525657047,5.47161561,1766.1,1765.8,1.93402786]
[1745525657417,3.42638446,1766.1,1765.9,0.15792855]
[1745525657751,3.42638446,1766.1,1765.8,1.93402786]
[1745525657953,3.42638446,1766.1,1766.0,0.15784815]
[1745525658151,3.42638446,1766.1,1765.9,0.15800446]
[1745525658316,3.42638446,1766.1,1766.0,0.15792406]
[1745525658515,9.08857799,1766.1,1766.0,0.15792406]
[1745525658849,3.42638446,1766.1,1765.8,1.93402786]
[1745525659052,3.42638446,1766.1,1765.9,0.15798928]
[1745525659253,9.08861345,1766.1,1765.8,1.93402786]
[1745525659573,9.08861345,1766.1,1765.9,0.15604988]
[1745525659868,9.08861345,1766.1,1765.8,1.93402786]
[1745525660074,3.42638446,1766.1,1765.9,0.15597396]
[1745525660277,9.08869748,1766.1,1765.8,0.804]
[1745525660585,10.5196644,1766.0,1765.9,0.15597396]
[1745525660747,4.07333949,1766.0,1765.9,0.15597396]
[1745525661265,4.07333949,1766.0,1765.7,4.833]
[1745525661655,4.07333949,1766.0,1765.8,0.15572035]
[1745525662065,9.73588774,1766.0,1765.8,0.15572035]
[1745525664182,5.66283481,1765.9,1765.8,0.15572035]
[1745525667407,11.31834626,1766.0,1765.8,0.15572035]
[1745525667584,16.98109139,1766.0,1765.8,0.15572035]
[1745525669215,11.31834626,1766.0,1765.8,0.15572035]
[1745525669877,16.98109488,1766.0,1765.8,0.15572035]
[1745525670117,11.31834626,1766.0,1765.8,0.15572035]
[1745525672510,5.65579801,1766.0,1765.8,0.15572035]
[1745525672687,3.0,1766.0,1765.8,0.93322035]
[1745525673710,0.42638446,1766.1,1765.8,0.93322035]
[1745525673923,6.73503968,1766.3,1765.9,6.19022784]
[1745525674154,3.0,1766.2,1765.9,6.19022784]
[1745525674293,3.0,1766.2,1766.0,0.15599392]
[1745525676392,3.41852346,1766.2,1766.0,0.15599392]
[1745525676600,0.41852346,1766.2,1766.0,6.44397629]
[1745525676811,1.07333949,1766.4,1766.1,0.15591355]
[1745525677010,4.07333949,1766.4,1766.1,0.15591355]
[1745525677414,3.0,1766.4,1766.1,6.96080526]
[1745525677606,5.04364271,1766.4,1766.1,12.62277828]
[1745525677828,5.04364271,1766.4,1766.1,6.96080526]
[1745525678838,2.04364271,1766.2,1766.1,1.29889728]
[1745525679135,2.04364271,1766.2,1766.1,0.15591355]
[1745525679296,7.53534317,1766.3,1766.1,0.68370087]
[1745525680039,7.53534317,1766.3,1766.1,0.15591355]
[1745525680202,8.66187294,1766.2,1766.1,0.15591355]
[1745525682070,10.28159455,1766.2,1766.1,0.15591355]
[1745525682489,12.13602131,1766.2,1766.1,0.15591355]
[1745525682685,9.73638227,1765.8,1765.7,4.83]
[1745525682839,9.73638227,1765.8,1765.7,4.95827218]
[1745525684367,4.07322676,1765.8,1765.7,4.95827218]
[1745525685787,9.73638227,1765.8,1765.7,4.95827218]
[1745525686714,1.87532676,1766.1,1765.7,5.71357218]
[1745525686852,7.53705834,1766.3,1765.9,5.6628024]
[1745525687202,7.53705834,1766.3,1766.0,0.88542177]
[1745525687486,6.73495834,1766.3,1766.0,0.88542177]
[1745525687670,12.39680729,1766.3,1766.0,0.88542177]
[1745525687880,3.0,1766.2,1766.0,0.88542177]
[1745525688255,8.66193788,1766.2,1766.0,0.88542177]
[1745525688685,3.0,1766.2,1766.0,0.88542177]
[1745525688865,8.66189507,1766.2,1766.0,0.88542177]
[1745525690995,3.0,1766.2,1766.0,0.88542177]
[1745525691490,6.73542029,1766.1,1766.0,0.13012177]
[1745525691797,3.0,1766.0,1765.8,0.8206]
[1745525695899,3.0,1766.0,1765.7,4.83]
[1745525696694,3.0,1766.0,1765.8,0.794]
[1745525697065,3.0,1766.2,1765.9,0.12895344]
[1745525697275,3.0,1766.2,1765.8,12.12002888]
[1745525697276,8.66187705,1766.2,1766.0,0.794]
[1745525697588,10.09423903,1766.2,1766.1,0.12879266]
[1745525698224,8.66187705,1766.2,1766.1,0.12879266]
[1745525698420,9.43147705,1766.2,1766.1,0.12879266]
[1745525698762,5.66270919,1766.0,1765.7,4.83]
[1745525699004,5.66312735,1765.9,1765.7,4.83]
[1745525699183,11.3262547,1765.9,1765.7,4.83]
[1745525699508,5.66315551,1765.8,1765.7,4.83]
[1745525699862,8.66315551,1765.8,1765.7,4.83]
[1745525701728,9.08149234,1765.8,1765.7,4.83]
[1745525702378,3.41833683,1765.8,1765.7,4.83]
[1745525703314,9.08149234,1765.8,1765.7,4.83]
[1745525703818,8.6635402,1765.7,1765.4,0.8023]
[1745525704522,0.41833683,1765.8,1765.5,5.66392444]
[1745525704678,8.6628702,1765.9,1765.6,0.8023]
[1745525704883,3.0,1765.9,1765.6,0.8023]
[1745525705085,8.66285211,1765.9,1765.6,0.8023]
[1745525706284,14.32596168,1765.9,1765.6,0.8023]
[1745525706613,5.66347624,1765.7,1765.4,0.8013]
[1745525707019,5.66347624,1765.7,1765.5,0.52792708]
[1745525707216,11.3272287,1765.7,1765.5,0.52792708]
[1745525707522,5.66347624,1765.7,1765.4,0.8013]
[1745525707729,5.66399112,1765.6,1765.4,0.8013]
[1745525707899,5.66399112,1765.6,1765.4,5.6293]
[1745525708728,5.66411781,1765.5,1765.4,5.6293]
[1745525708905,5.66411781,1765.5,1765.4,4.828]
[1745525709105,5.66411781,1765.5,1765.2,0.7946]
[1745525709492,5.66399112,1765.6,1765.2,0.7946]
[1745525709732,3.0,1765.6,1765.2,6.45942347]
[1745525709913,3.0,1765.6,1765.2,13.25305202]
[1745525710097,3.0,1765.6,1765.2,7.58816582]
[1745525710299,8.66382163,1765.6,1765.2,7.58816582]
[1745525711480,14.32785574,1765.6,1765.2,7.58816582]
[1745525711649,0.7577,1765.4,1765.1,4.828]
[1745525711808,5.66485424,1765.3,1765.1,4.828]
[1745525712007,5.66457891,1765.4,1765.1,4.828]
[1745525712212,5.66457891,1765.4,1765.2,0.1097906]
[1745525712529,5.66457891,1765.4,1765.1,4.828]
[1745525712739,5.66457891,1765.4,1765.2,0.1097906]
[1745525712937,8.66425476,1765.5,1765.2,0.1097906]
[1745525713114,15.83728361,1765.5,1765.1,4.828]
[1745525713315,5.66447726,1765.4,1765.2,0.1123396]
[1745525713555,5.66447726,1765.4,1765.1,4.828]
[1745525713732,10.17284888,1765.5,1765.3,0.11225913]
[1745525714023,10.17284888,1765.5,1765.1,11.2437909]
[1745525714459,8.66425476,1765.5,1765.2,0.1123396]
[1745525714658,8.66425476,1765.5,1765.1,6.4157909]
[1745525714843,8.66425476,1765.5,1765.2,0.11412964]
[1745525715041,14.32863515,1765.5,1765.2,0.11412964]
[1745525715356,14.32863515,1765.5,1765.3,0.11404918]
[1745525715559,15.83726867,1765.5,1765.3,0.11404918]
[1745525715760,5.66454857,1765.4,1765.0,10.49349404]
[1745525716059,6.07975201,1765.4,1765.0,10.49349404]
[1745525716233,0.41520344,1765.4,1765.2,0.8211]
[1745525716429,5.95751766,1765.8,1765.4,5.66418743]
[1745525716430,0.29426999,1765.8,1765.4,5.66418743]
[1745525716748,5.66324889,1765.8,1765.6,0.8211]
[1745525716928,3.0,1765.7,1765.6,0.8211]
[1745525717130,3.0,1765.7,1765.5,0.8211]
[1745525718338,0.4300291,1765.7,1765.5,6.48521685]
[1745525718536,3.0,1765.8,1765.5,6.48521685]
[1745525720664,3.0,1765.8,1765.5,0.8211]
[1745525720959,3.0,1765.8,1765.4,11.25408743]
[1745525721163,3.0,1765.8,1765.4,12.94595938]
[1745525721342,8.66319741,1765.8,1765.4,12.94595938]
[1745525721546,5.66351331,1765.7,1765.4,7.28177195]